Cogmind - Beta 9.6 @@@ ROGUE MODE // 2020.08.14 @ 12:44:39 Player: naoky Result: Self-destructed Performance ------------- Evolutions (1) 500 Regions Visited (2) 400 Robots Destroyed (15) 75 Value Destroyed (326) 326 Prototype IDs (2) 40 Alien Tech Used (0) 0 Bonus (0) 0 TOTAL SCORE: 1341 Bonus ------- None Cogmind --------- Core Integrity 286/400 Matter 300/300 Energy 4/100 System Corruption 0% Temperature Cool (0) Movement Flying (37) Location -9/Materials Parts ------- > --- POWER (1) -------- (None) > --- PROPULSION (3) --- Flight Unit Flight Unit > --- UTILITY (3) ------ Signal Interpreter > --- WEAPON (2) ------- (None) > --- INVENTORY (4) ---- Heat Sink Small Storage Unit EMP Blaster Peak State ------------ > --- POWER ------------ Light Ion Engine > --- PROPULSION ------- Flight Unit Flight Unit Flight Unit > --- UTILITY ---------- Small Storage Unit Sensor Array Signal Interpreter > --- WEAPON ----------- Particle Gun EMP Blaster > --- INVENTORY -------- Flight Unit Heat Sink Weight Redist. System Small Laser [Rating: 11] Favorites ----------- Power Light Ion Engine Engine Light Ion Engine Propulsion Aluminum Leg Leg Aluminum Leg Flight Unit Flight Unit Utility Propulsion Shielding Device Sensor Array Storage Small Storage Unit Processor Signal Interpreter Protection Propulsion Shielding Weapon Assault Rifle Energy Gun Particle Gun Ballistic Gun Assault Rifle Launcher EMP Blaster Build | -11 -10 -9 ------- Run | Scr Mat Mat Slots Evolved 2 | . . 2 Power . | . . . Propulsion 1 | . . 1 Utility 1 | . . 1 Weapon . | . . . Parts Attached 28 | 6 14 8 Power 4 | 1 3 . Engine 4 | 1 3 . Core . | . . . Reactor . | . . . Propulsion 8 | 2 4 2 Treads . | . . . Leg 4 | 2 2 . Wheel . | . . . Hover . | . . . Flight 4 | . 2 2 Utility 7 | 1 2 4 Device 2 | . . 2 Storage 3 | 1 1 1 Processor 1 | . . 1 Hackware . | . . . Protection 1 | . 1 . Artifact . | . . . Weapon 9 | 2 5 2 Energy Gun 7 | 1 5 1 Energy Cannon . | . . . Ballistic Gun 1 | 1 . . Ballistic Cannon . | . . . Launcher 1 | . . 1 Special Weapon . | . . . Impact Weapon . | . . . Slashing Weapon . | . . . Piercing Weapon . | . . . Special Melee Weapon . | . . . Unidentified Prototypes . | . . . Parts Lost 9 | . 2 7 Power 1 | . . 1 Propulsion 2 | . . 2 Utility 2 | . . 2 Weapon 4 | . 2 2 Highest Loss Streak 7 | . 1 7 Average Slot Usage (%) 98 | . 98 93 Engine 13 | . 13 11 Leg 18 | . 20 . Flight 9 | . 7 30 Device 1 | . . 13 Storage 13 | . 14 8 Processor 1 | . . 11 Protection 12 | . 13 . Energy Gun 17 | . 17 18 Ballistic Gun 9 | . 10 . Naked Turns . | . . . Heaviest Build 19 | 11 19 12 Greatest Support 20 | 20 20 14 Greatest Overweight (x) 3 | 1 3 . Average Overweight (x) . | . . . Largest Inventory Capacity 10 | 6 8 10 Average Capacity 6 | 5 6 5 Most Carried 8 | 2 8 7 Average Carried 5 | 1 5 3 Final Capacity 8 | 6 8 4 Final Carried 8 | 2 8 3 Class Distribution -------------------- 83% | Mutant 16% | Scavenger-Mutant Dominant Class ---------------- Mutant | -10/Materials Scavenger-Mutant | -9/Materials Resources | -11 -10 -9 ----------- Run | Scr Mat Mat Matter Collected 543 | 190 283 70 Remotely . | . . . Salvage Created 533 | . 533 . Parts 30 | . 30 . Haulers Intercepted 1 | . 1 . Recyclers Shooed 1 | . 1 . Parts Field Recycled . | . . . Retrieved Matter . | . . . Parts Self-Destructed . | . . . Prevented . | . . . Kills | -11 -10 -9 ------- Run | Scr Mat Mat Combat Hostiles Destroyed 10 | . 10 . Guns 10 | . 10 . Classes Destroyed 6 | . 6 . Builder 1 | . 1 . Hauler 1 | . 1 . Recycler 1 | . 1 . Watcher 2 | . 2 . Swarmer 3 | . 3 . Grunt 7 | . 7 . Best Kill Streak 4 | . 4 . Combat Bots Only 3 | . 3 . Max Kills in Single Turn 1 | . 1 . Gunslinging . | . . . Exploded . | . . . Melee . | . . . Uniques/NPCs Destroyed . | . . . Combat | -11 -10 -9 -------- Run | Scr Mat Mat Damage Taken 725 | . 408 317 Core 160 | . 46 114 Absorbed by Shields . | . . . Core Remaining (%) 90 | 100 81 . Volleys Fired 43 | . 43 . Largest 2 | . 2 . Hottest 105 | . 105 . Shots Fired 86 | . 86 . Gun 86 | . 86 . Cannon . | . . . Launcher . | . . . Special . | . . . Kinetic 31 | . 31 . Thermal 55 | . 55 . Explosive . | . . . Electromagnetic . | . . . Robot Hit Streak 9 | . 9 . Robot Miss Streak 3 | . 3 . Penetration Max . | . . . Secondary Targets 1 | . 1 . Max Gunslinging Chain 1 | . 1 . Shots Hit Robots 57 | . 57 . Core Hits 21 | . 21 . Critical Hits . | . . . Critical Kills . | . . . Critical Parts Destroyed . | . . . Melee Attacks . | . . . Impact . | . . . Slashing . | . . . Piercing . | . . . Sneak Attacks . | . . . Combat Hostiles . | . . . Follow-up Attacks . | . . . Damage Inflicted 775 | . 775 . Guns 775 | . 775 . Cannons . | . . . Explosions . | . . . Melee . | . . . Ramming . | . . . Kinetic 193 | . 193 . Thermal 582 | . 582 . Explosive . | . . . Electromagnetic . | . . . Impact . | . . . Slashing . | . . . Piercing . | . . . Highest Corruption . | . . . Average Corruption . | . . . Corruption Purged . | . . . Overload Shots . | . . . Overflow Damage . | . . . Projectiles . | . . . Explosions . | . . . Melee . | . . . Knockbacks . | . . . Impact . | . . . Kinetic . | . . . Secondary . | . . . Self-Inflicted Damage . | . . . Shots . | . . . Rammed . | . . . Targets Rammed . | . . . Kicked . | . . . Crushed . | . . . Highest Temperature 205 | . 205 5 Average Temperature 50 | . 50 3 Received Heat Transfer 324 | . 150 174 Siege Activations . | . . . Robots Corrupted . | . . . Combat Hostiles . | . . . Parts Fried . | . . . Impact Corruptions . | . . . Robots Melted . | . . . Combat Hostiles . | . . . Parts Melted 1 | . 1 . Heat Transferred 1423 | . 1423 . Parts Sabotaged . | . . . Parts Stolen . | . . . Parts Stripped . | . . . Power Chain Reactions . | . . . Missiles Intercepted . | . . . Alert | -11 -10 -9 ------- Run | Scr Mat Mat Peak Influence 171 | . 171 99 Average Influence 68 | . 73 73 Maximum Alert Level . | . . . Low Security (%) 100 | 100 100 100 Level 1 . | . . . Level 2 . | . . . Level 3 . | . . . Level 4 . | . . . Level 5 . | . . . High Security . | . . . Max Security . | . . . Squads Dispatched 5 | . 3 2 Investigation . | . . . Extermination . | . . . Reinforcement 5 | . 3 2 Assault . | . . . Garrison . | . . . Intercept . | . . . Construction Impeded . | . . . Haulers Reinforced . | . . . Stealth | -11 -10 -9 --------- Run | Scr Mat Mat Distress Signals 1 | . 1 . Communications Jammed . | . . . Distress Signals . | . . . Times Spotted 31 | . 19 12 Peak Tracking Total 11 | . 5 11 Tactical Retreats 2 | . 2 . Traps | -11 -10 -9 ------- Run | Scr Mat Mat Traps Triggered 2 | . 2 . Indirectly . | . . . Trap Hack Attempts . | . . . Triggered . | . . . Disarmed . | . . . Reprogrammed . | . . . Reused . | . . . Traps Extracted . | . . . Installed . | . . . Triggered . | . . . Machines | -11 -10 -9 ---------- Run | Scr Mat Mat Machines Disabled . | . . . Max in Single Turn . | . . . Machines Sabotaged . | . . . Garrisons Compromised . | . . . Overloaded Fab Kills . | . . . Fab Network Shutdowns . | . . . Hacking | -11 -10 -9 --------- Run | Scr Mat Mat Machines Accessed 5 | . 4 1 Terminals 3 | . 3 . Fabricators . | . . . Repair Stations . | . . . Recycling Units 1 | . 1 . Scanalyzers 1 | . . 1 Garrison Access . | . . . Total Hacks 9 | . 5 4 Successful 6 | . 3 3 Failed 3 | . 2 1 Catastrophic . | . . . Database Lockouts . | . . . Manual 2 | . 2 . Terminals 4 | . 4 . Fabricators . | . . . Repair Stations . | . . . Recycling Units 1 | . 1 . Scanalyzers 4 | . . 4 Garrison Access . | . . . Terminal Hacks 2 | . 2 . Prototype ID Bank 1 | . 1 . Unreport Threat 1 | . 1 . Fabricator Hacks . | . . . Repair Station Hacks . | . . . Recycling Unit Hacks 1 | . 1 . Report Inventory 1 | . 1 . Scanalyzer 3 | . . 3 Insert Component 2 | . . 2 Analyze 1 | . . 1 Garrison Access Hacks . | . . . Unauthorized Hacks . | . . . Terminals . | . . . Fabricators . | . . . Repair Stations . | . . . Recycling Units . | . . . Scanalyzers . | . . . Garrison Access . | . . . Data Cores Recovered . | . . . Used . | . . . Hacking Detections 3 | . 2 1 Full Trace Events . | . . . Feedback Events . | . . . Feedback Blocked . | . . . Robot Schematics Acquired . | . . . Robots Built . | . . . Matter . | . . . Time . | . . . Total Robot Build Rating . | . . . Part Schematics Acquired 1 | . . 1 Parts Built . | . . . Matter . | . . . Time . | . . . Total Part Build Rating . | . . . Parts Repaired . | . . . Time . | . . . Parts Recycled . | . . . Recycled Matter . | . . . Retrieved Matter . | . . . Retrieved Components . | . . . Parts Scanalyzed 1 | . . 1 Part Schematics Acquired 1 | . . 1 Parts Damaged . | . . . Bothacking | -11 -10 -9 ------------ Run | Scr Mat Mat Used RIF Installer . | . . . Robots Hacked . | . . . Non-combat . | . . . Combat . | . . . Robot Hacks Applied . | . . . Relay Couplers Released . | . . . Robots Rewired . | . . . Allies Hacked . | . . . Hacks Repelled . | . . . Allies | -11 -10 -9 -------- Run | Scr Mat Mat Total Allies . | . . . Largest Group . | . . . Highest-Rated Group . | . . . Highest-Rated Ally . | . . . Total Orders . | . . . Ally Attacks . | . . . Total Damage . | . . . Kills . | . . . Allies Corrupted . | . . . Allies Melted . | . . . Intel | -11 -10 -9 ------- Run | Scr Mat Mat Robot Analysis Total . | . . . Derelict Logs Recovered . | . . . Drone Launches . | . . . Drone Recoveries . | . . . Exploration | -11 -10 -9 ------------- Run | Scr Mat Mat Turns Passed 945 | 63 790 92 Spaces Moved 653 | 51 453 149 Core 16 | 16 . . Treads . | . . . Legs 364 | 35 329 . Wheels . | . . . Hover . | . . . Flight 273 | . 124 149 Fastest Speed 34 | 50 117 34 Average Speed 99 | 103 120 34 Slowest Speed 280 | 150 280 37 Overloaded Moves . | . . . Propulsion Burnouts . | . . . Robots Hopped 7 | . . 7 Cave-ins Triggered . | . . . Exploration Rate (%) 30 | 4 67 20 Regions Visited 2 Branch Regions . Pre-discovered Areas . | . . . Known Exits Taken . | . . . Unknown Exits Taken 2 | 1 1 . Scrap Searched . | . . . Spaces Dug . | . . . Terrain Destroyed . | . . . Melee . | . . . Projectile . | . . . AOE . | . . . Actions | -11 -10 -9 --------- Run | Scr Mat Mat Total 848 | 58 609 181 Wait 108 | . 79 29 Move 640 | 50 452 138 Hop 4 | . . 4 Pick Up 14 | 2 12 . Fast Attach 14 | 6 8 . Attach 9 | . 4 5 Detach 1 | . 1 . Swap 5 | . 2 3 Drop 10 | . 8 2 Fire 43 | . 43 . Melee . | . . . Ram . | . . . Kick . | . . . Crush . | . . . Escape Stasis . | . . . Rewire . | . . . Trap . | . . . Miscellaneous . | . . . Route ------- -11/Scrapyard -10/Materials (discovered 5 exits: *Mat x3 / [*Min x2]) -9/Materials History --------- Turn | Location | Event 9 | -11/Scrapyard | Discovered new exit (range 14) 64 | -11/Scrapyard | Entered Materials 157 | -10/Materials | Discovered new exit (range 8) 263 | -10/Materials | Discovered new exit (range 3) 312 | -10/Materials | Build established: Mutant 355 | -10/Materials | Discovered new exit (range 16) 433 | -10/Materials | Discovered new exit (range 14) 701 | -10/Materials | Discovered new exit (range 5) 854 | -10/Materials | Entered another Materials area 854 | -9/Materials | Evolved 2 slots: Propulsion x1, Utility x1 946 | -9/Materials | Self-destructed Last Messages --------------- Scanning Heat Sink... Ready to analyze. 00909_ C-30 ARC bursts open, deploying its payload. 00909_ L-31 Rogue unfolds itself. 00909_ G-34 Mercenary unfolds itself. 00910_ ALERT: Hostiles spotted, dispatching reinforcements to Terminal M007. 00914_ Acquired 70 matter. 00916_ O-16 Technician: "IFF HANDSHAKE FAILED. SECURING TERMINAL." 00917_ Flight Unit destroyed. 00918_ Particle Gun destroyed. 00919_ ALERT: Hostiles spotted, dispatching reinforcements to Terminal M005. 00925_ Flight Unit destroyed. 00939_ K-01 Serf collects debris. 00940_ Sensor Array destroyed. 00942_ K-01 Serf collects debris. 00943_ Lgt. Ion Engine destroyed. 00945_ Sml. Laser destroyed. 00945_ Weight Redist. System destroyed. Map ----- +----------------------------------------------------+ | ????????????????????????# #???????????? | | ????????????????????????# #???????????? | | ????????????????????????# ############? | | ????????????????????????# ## """ #? | | ???????????????????????## ## """"" #? | | ???????????????????????# # """"" #? | | ???????????????????????# # """"" #? | | ???????????????????????# + """ #? | | ???????????????????????# # #? | | ???????????????????????# # #? | | ????????????????######### ## #? | | ????????????????# # ############? | | ????????????????# "" "" # # #????? | | ????????????????# ""S"" + + """ #????? | | ????????????????# """" # # """ #????? | | ????????????????# # # """ #????? | | ????????????????######### # #????? | | ????????????#+########### # #????? | | ????????? ##########??? | | ????????? # #??? | | ????????? + T """ ???? | | ??????????### ########### # """ ???? | | ????????????????????????#ggg# """ ???? | | ????????????????????????# #? #??? | | ????????????????????????# #? """ #??? | | ????????????????????????#@ #?? """ #??? | | ????????????????????##### #?? """????? | | ????????????????????#!! #??? ????? | | ????????????????????#!! #???####????? | | ????????????????????#[[ #???????????? | | ????????????????????#[[ ##??????????? | | ????????????????????#]] ## #??????????? | | ????????????????????#]] ?# % #??????????? | | ????????????????????####?# k#??????????? | | ????????????????######???#gg #??????????? | | ????????????????# ?### #??????????? | | ????????????????# """ # #??????????? | | ????????????????# """ # ##+####????? | | ????????????????# """ + ^ #????? | | ????????????????# # #????? | | ????????????????# / # #????? | | ????????????????######?# #????? | | ???????????????????????# #????? | | ???????????????????????# #????? | | ???????????????????????# #????? | | ???????????????????????# #####+#####?? | | ???????????????????????# #### #?? | | ???????????????????????# + """ #?? | | ?????????????????????#####/##### """ #?? | | ?????????????????????# # """ #?? | +----------------------------------------------------+ Best States ------------- Heat Dissipation 28 Energy Generation 10 Energy Capacity 250 Matter Stores 300 Matter Capacity 300 Sight Range 16 Robot Scan Range 10 Terrain Scan Density 10 Additional Mass Support 6 Propulsion Shielding 33 Evasion (%) 63 Item Schematics ----------------- Flight Unit | -9/Materials | Scanalyzed Robot Schematics ------------------ None Fabricated ------------ Nothing Alien Tech Used ----------------- None Achievements -------------- None Challenges ------------ None Game ------ Seed GravmagDirtyRedirector Manual? 0 Play Time 00:19:52 Cumulative 18.0 hours Start 2020.08.14 @ 12:26:11 End 2020.08.14 @ 12:44:39 Sessions 1 Manual Loads 0 Difficulty Rogue Special Mode None Game No. 11 Rogue 11 Adventurer 0 Explorer 0 Win Type - Total 0 Types 0/0/0/0/0/0/0 Lore% 5 Gallery% 22 Achievement% 19 Wizard Run 0 Options --------- ASCII 0 Keyboard 1 Movement Vi Keybinds 0 Fullscreen 1 Font 24/Terminus Map View 76x50 Tactical HUD 1 Map Filters NONE Filters NONE Steam 1 RUN: 4fdb9260-bad0-4639-8d91-c4a6fefd73c4